[Event "MČR juniorů a juniorek v rapid šachu 2023"]
[Site "Czech Republic"]
[Date "2023.09.23"]
[Round "4.2"]
[White "Steinbauer, Sebastian"]
[Black "Jun, Rudolf"]
[Result "1/2-1/2"]
[TimeControl "20 min + 5 sec per move"]
[WhiteFideId "399272"]
[BlackFideId "376612"]
[WhiteElo "1880"]
[BlackElo "2151"]

1. e4 {[%clk 00:20:07]} {[%emt 00:00:01]} c5 {[%clk 00:20:10]} 2. Nf3 {[%clk
00:20:11]} {[%emt 00:00:03]} Nc6 {[%clk 00:20:14]} 3. d4 {[%emt 00:00:01]} cxd4
4. Nxd4 {[%emt 00:00:02]} Nf6 5. Nc3 {[%clk 00:20:14]} {[%emt 00:00:03]} e5
{[%clk 00:20:23]} 6. Nf5 {[%emt 00:00:44]} d5 7. Nxd5 {[%clk 00:16:56]} {[%emt
00:02:33]} Nxd5 {[%clk 00:20:06]} {[%emt 00:00:25]} 8. Qxd5 {[%clk 00:15:26]}
{[%emt 00:01:36]} Qxd5 {[%clk 00:17:35]} {[%emt 00:02:35]} 9. exd5 {[%clk
00:15:30]} {[%emt 00:00:02]} Bxf5 {[%emt 00:00:21]} 10. dxc6 {[%clk 00:15:21]}
bxc6 {[%clk 00:17:36]} {[%emt 00:00:02]} 11. c3 {[%clk 00:14:43]} {[%emt
00:00:43]} Bc5 {[%clk 00:17:05]} {[%emt 00:00:36]} 12. Bc4 {[%clk 00:14:42]}
{[%emt 00:00:05]} Rd8 {[%clk 00:16:36]} {[%emt 00:00:34]} 13. O-O {[%clk
00:13:42]} {[%emt 00:01:06]} Bd3 {[%clk 00:16:32]} {[%emt 00:00:08]} 14. Bxd3
{[%clk 00:13:46]} {[%emt 00:00:02]} Rxd3 {[%clk 00:16:36]} 15. Re1 {[%clk
00:13:50]} {[%emt 00:00:02]} f6 {[%clk 00:16:40]} 16. Kf1 {[%clk 00:12:50]}
{[%emt 00:01:05]} Kf7 {[%clk 00:16:36]} {[%emt 00:00:08]} 17. Be3 {[%clk
00:12:53]} {[%emt 00:00:02]} Bxe3 {[%clk 00:16:22]} {[%emt 00:00:20]} 18. Rxe3
{[%clk 00:12:57]} {[%emt 00:00:01]} Rd2 {[%clk 00:16:15]} {[%emt 00:00:11]} 19.
Re2 {[%clk 00:13:00]} {[%emt 00:00:02]} Rhd8 {[%clk 00:16:18]} {[%emt
00:00:02]} 20. Rae1 {[%clk 00:12:54]} {[%emt 00:00:10]} R2d7 {[%clk 00:15:39]}
{[%emt 00:00:45]} 21. f3 {[%clk 00:12:41]} {[%emt 00:00:18]} h5 {[%clk
00:15:11]} {[%emt 00:00:32]} 22. Kf2 {[%clk 00:12:30]} {[%emt 00:00:16]} Rb8
{[%clk 00:14:53]} {[%emt 00:00:24]} 23. Rc1 {[%clk 00:12:21]} {[%emt 00:00:14]}
Rd5 {[%clk 00:14:02]} {[%emt 00:00:56]} 24. Rcc2 {[%clk 00:12:18]} {[%emt
00:00:08]} Rbd8 {[%clk 00:13:48]} {[%emt 00:00:18]} 25. Re1 {[%clk 00:12:07]}
{[%emt 00:00:16]} g5 {[%clk 00:13:02]} {[%emt 00:00:51]} 26. h3 {[%clk
00:11:49]} {[%emt 00:00:23]} h4 {[%clk 00:10:46]} {[%emt 00:02:22]} 27. Rce2
{[%emt 00:01:11]} Ke6 28. Re4 {[%clk 00:10:43]} Kf5 {[%clk 00:09:03]} {[%emt
00:01:58]} 29. Ra4 {[%clk 00:09:48]} R8d7 {[%clk 00:08:57]} {[%emt 00:01:11]}
30. Rc4 {[%emt 00:00:59]} c5 {[%clk 00:07:31]} {[%emt 00:01:17]} 31. Rce4
{[%emt 00:01:05]} Rd2+ {[%clk 00:06:33]} 32. R4e2 {[%emt 00:01:23]} Kf4 {[%emt
00:00:58]} 33. Rxd2 Rxd2+ 34. Re2 Rxe2+ {[%clk 00:04:18]} 35. Kxe2 {[%clk
00:09:13]} e4 {[%emt 00:04:28]} 36. fxe4 Kxe4 37. a3 {[%clk 00:08:04]} {[%emt
00:00:52]} Kd5 {[%clk 00:00:16]} 38. b3 f5 {[%clk 00:00:31]} 39. Kf3 {[%clk
00:08:04]} Kc6 {[%clk 00:00:07]} {[%emt 00:01:05]} 40. g4 {[%emt 00:01:10]}
hxg3 {[%clk 00:00:11]} 41. Kxg3 {[%clk 00:07:01]} Kd5 {[%clk 00:00:15]} 42. Kf3
{[%clk 00:07:01]} a6 {[%clk 00:00:11]} 43. Ke3 {[%clk 00:07:01]} a5 {[%clk
00:00:11]} 44. Kf3 {[%clk 00:07:01]} Ke5 {[%clk 00:00:07]} {[%emt 00:00:51]} 45.
b4 {[%clk 00:05:51]} axb4 {[%clk 00:00:11]} {[%emt 00:01:05]} 46. axb4 {[%clk
00:05:52]} cxb4 {[%clk 00:00:12]} {[%emt 00:00:08]} 47. cxb4 {[%clk 00:05:56]}
Kd5 {[%clk 00:00:08]} {[%emt 00:00:09]} 48. Kg3 {[%emt 00:00:08]} f4+ {[%clk
00:00:07]} 49. Kg4 {[%clk 00:06:04]} Kc4 {[%clk 00:00:11]} {[%emt 00:00:01]} 50.
h4 {[%clk 00:06:08]} f3 {[%clk 00:00:08]} {[%emt 00:00:08]} 51. Kxf3 {[%clk
00:06:12]} {[%emt 00:00:01]} gxh4 {[%clk 00:00:12]} 52. Kg4 {[%clk 00:06:16]}
Kxb4 {[%clk 00:00:16]} {[%emt 00:00:02]} 53. Kxh4 {[%clk 00:06:20]} 1/2-1/2

[Event "MČR juniorů a juniorek v rapid šachu 2023"]
[Site "Czech Republic"]
[Date "2023.09.23"]
[Round "4.3"]
[White "Zadrapova, Amalie"]
[Black "Ocelak, Jakub"]
[Result "0-1"]
[TimeControl "20 min + 5 sec per move"]
[WhiteFideId "23710276"]
[BlackFideId "23707933"]
[WhiteElo "1590"]
[BlackElo "2025"]

1. e4 {[%clk 00:20:08]} {[%emt 00:00:01]} g6 {[%clk 00:20:09]} {[%emt
00:00:01]} 2. d4 {[%clk 00:20:11]} {[%emt 00:00:02]} Bg7 {[%clk 00:20:12]}
{[%emt 00:00:01]} 3. Nf3 {[%clk 00:20:13]} {[%emt 00:00:03]} d6 {[%clk
00:20:16]} {[%emt 00:00:02]} 4. Nc3 {[%clk 00:20:06]} {[%emt 00:00:12]} a6
{[%clk 00:20:20]} {[%emt 00:00:01]} 5. Be2 {[%clk 00:19:42]} {[%emt 00:00:29]}
b5 {[%clk 00:20:23]} {[%emt 00:00:02]} 6. O-O {[%clk 00:19:35]} {[%emt
00:00:12]} Bb7 {[%clk 00:20:26]} {[%emt 00:00:02]} 7. a3 {[%clk 00:19:17]}
{[%emt 00:00:24]} Nd7 {[%clk 00:20:30]} {[%emt 00:00:02]} 8. h3 {[%clk
00:18:27]} {[%emt 00:00:55]} c5 {[%clk 00:20:28]} {[%emt 00:00:07]} 9. dxc5
{[%clk 00:16:28]} {[%emt 00:02:04]} Nxc5 {[%clk 00:20:08]} {[%emt 00:00:25]} 10.
Bd3 {[%clk 00:13:54]} {[%emt 00:02:38]} Nf6 {[%clk 00:20:04]} {[%emt 00:00:08]}
11. Re1 {[%clk 00:12:48]} {[%emt 00:01:12]} O-O {[%clk 00:19:09]} {[%emt
00:01:00]} 12. Bf4 {[%clk 00:11:20]} {[%emt 00:01:34]} Rc8 {[%clk 00:17:28]}
{[%emt 00:01:45]} 13. Qe2 {[%clk 00:11:18]} {[%emt 00:00:07]} Nxd3 {[%clk
00:17:27]} {[%emt 00:00:06]} 14. cxd3 {[%clk 00:11:12]} {[%emt 00:00:11]} Qd7
{[%clk 00:16:16]} {[%emt 00:01:16]} 15. d4 {[%clk 00:11:07]} {[%emt 00:00:11]}
Rc4 {[%clk 00:15:01]} {[%emt 00:01:19]} 16. Rad1 {[%clk 00:10:16]} {[%emt
00:00:56]} Rfc8 {[%clk 00:14:41]} {[%emt 00:00:25]} 17. e5 {[%clk 00:07:26]}
{[%emt 00:02:55]} Nd5 {[%clk 00:14:43]} {[%emt 00:00:02]} 18. Bd2 {[%clk
00:07:00]} {[%emt 00:00:31]} Nxc3 {[%clk 00:13:44]} {[%emt 00:01:05]} 19. Bxc3
{[%clk 00:06:58]} {[%emt 00:00:07]} Bd5 {[%clk 00:12:51]} {[%emt 00:00:58]} 20.
Ng5 {[%clk 00:05:00]} {[%emt 00:02:03]} Qf5 {[%clk 00:12:00]} {[%emt 00:00:55]}
21. Ne4 {[%clk 00:04:04]} {[%emt 00:01:02]} Qxe4 {[%clk 00:11:48]} {[%emt
00:00:17]} 22. Qxe4 {[%clk 00:04:05]} {[%emt 00:00:05]} Bxe4 {[%clk 00:11:51]}
23. Rxe4 {[%clk 00:04:06]} {[%emt 00:00:04]} dxe5 {[%clk 00:11:55]} 24. Rxe5
{[%clk 00:03:05]} {[%emt 00:01:06]} Bxe5 {[%clk 00:11:56]} {[%emt 00:00:03]} 25.
dxe5 {[%clk 00:03:08]} {[%emt 00:00:03]} R4c7 {[%clk 00:07:54]} {[%emt
00:04:07]} 26. Kf1 {[%clk 00:02:09]} {[%emt 00:01:04]} Kf8 {[%clk 00:07:55]}
{[%emt 00:00:04]} 27. Ke2 {[%clk 00:01:51]} {[%emt 00:00:23]} Ke8 {[%clk
00:07:58]} {[%emt 00:00:02]} 28. Rd4 {[%clk 00:01:39]} {[%emt 00:00:17]} Rd7
{[%clk 00:06:00]} {[%emt 00:02:03]} 29. Rh4 {[%clk 00:01:30]} {[%emt 00:00:15]}
h5 {[%clk 00:06:03]} 30. g4 {[%clk 00:01:27]} {[%emt 00:00:09]} Rc4 {[%clk
00:06:06]} {[%emt 00:00:01]} 31. Ke3 {[%clk 00:00:54]} {[%emt 00:00:39]} Rd1
{[%clk 00:04:20]} {[%emt 00:01:50]} 32. f4 {[%clk 00:00:51]} {[%emt 00:00:09]}
hxg4 {[%clk 00:04:21]} {[%emt 00:00:03]} 33. hxg4 {[%clk 00:00:42]} {[%emt
00:00:14]} Rf1 {[%clk 00:03:26]} {[%emt 00:01:00]} 34. g5 {[%clk 00:00:37]}
{[%emt 00:00:10]} Kd7 {[%clk 00:03:24]} {[%emt 00:00:07]} 35. Rg4 {[%clk
00:00:19]} {[%emt 00:00:23]} Ke6 {[%clk 00:03:17]} {[%emt 00:00:12]} 36. Rh4
{[%clk 00:00:18]} {[%emt 00:00:06]} Kd5 {[%clk 00:02:58]} {[%emt 00:00:23]} 37.
Bd2 {[%clk 00:00:07]} {[%emt 00:00:17]} Re4+ {[%clk 00:02:09]} {[%emt
00:00:54]} 38. Kd3 {[%clk 00:00:11]} {[%emt 00:00:02]} Rf3+ {[%clk 00:01:32]}
{[%emt 00:00:41]} 39. Kc2 {[%clk 00:00:15]} {[%emt 00:00:02]} Rc4+ {[%clk
00:01:31]} {[%emt 00:00:06]} 40. Kd1 {[%clk 00:00:15]} {[%emt 00:00:04]} Rf1+
{[%clk 00:01:10]} {[%emt 00:00:25]} 41. Ke2 {[%clk 00:00:18]} {[%emt 00:00:03]}
Rg1 {[%clk 00:01:06]} {[%emt 00:00:08]} 42. Rh7 {[%clk 00:00:16]} {[%emt
00:00:08]} Ke4 {[%clk 00:00:29]} {[%emt 00:00:43]} 43. Rxf7 {[%clk 00:00:14]}
{[%emt 00:00:06]} Rg2+ {[%clk 00:00:32]} {[%emt 00:00:02]} 44. Ke1 {[%clk
00:00:12]} {[%emt 00:00:07]} Rc2 {[%clk 00:00:27]} {[%emt 00:00:10]} 45. Bc3
{[%clk 00:00:13]} {[%emt 00:00:04]} Rc1# {[%emt 00:00:09]} 0-1

[Event "MČR juniorů a juniorek v rapid šachu 2023"]
[Site "Czech Republic"]
[Date "2023.09.23"]
[Round "4.4"]
[White "Hlavina, Matous"]
[Black "Svacina, Tobias"]
[Result "1-0"]
[TimeControl "20 min + 5 sec per move"]
[WhiteFideId "386650"]
[BlackFideId "385859"]
[WhiteElo "2005"]
[BlackElo "1782"]

1. b3 {[%clk 00:20:06]} {[%emt 00:00:02]} d5 {[%clk 00:20:07]} {[%emt
00:00:04]} 2. Bb2 {[%clk 00:20:10]} {[%emt 00:00:02]} e6 {[%clk 00:20:08]}
{[%emt 00:00:03]} 3. e3 {[%clk 00:20:13]} {[%emt 00:00:02]} c5 {[%clk
00:20:11]} {[%emt 00:00:03]} 4. f4 {[%clk 00:20:03]} {[%emt 00:00:15]} Nc6
{[%clk 00:20:04]} {[%emt 00:00:11]} 5. Bb5 {[%clk 00:19:56]} {[%emt 00:00:11]}
Qc7 {[%clk 00:19:33]} {[%emt 00:00:37]} 6. Nf3 {[%clk 00:19:57]} {[%emt
00:00:05]} Nf6 {[%clk 00:19:29]} {[%emt 00:00:09]} 7. O-O {[%clk 00:19:57]}
{[%emt 00:00:05]} Be7 {[%clk 00:19:17]} {[%emt 00:00:16]} 8. Qe1 {[%clk
00:19:50]} {[%emt 00:00:11]} O-O {[%clk 00:18:42]} {[%emt 00:00:41]} 9. Bxc6
{[%clk 00:19:52]} {[%emt 00:00:03]} Qxc6 {[%clk 00:18:30]} {[%emt 00:00:18]} 10.
Ne5 {[%clk 00:19:35]} {[%emt 00:00:22]} Qd6 {[%clk 00:17:32]} {[%emt 00:01:02]}
11. d3 {[%clk 00:19:26]} {[%emt 00:00:15]} b6 {[%clk 00:17:12]} {[%emt
00:00:25]} 12. Nd2 {[%clk 00:19:21]} {[%emt 00:00:09]} Bb7 {[%clk 00:17:12]}
{[%emt 00:00:06]} 13. a4 {[%clk 00:19:05]} {[%emt 00:00:20]} Nd7 {[%clk
00:16:33]} {[%emt 00:00:43]} 14. Qg3 {[%clk 00:17:59]} {[%emt 00:01:11]} f6
{[%clk 00:15:53]} {[%emt 00:00:46]} 15. Nef3 {[%clk 00:17:32]} {[%emt
00:00:32]} Rfe8 {[%clk 00:15:27]} {[%emt 00:00:31]} 16. Rae1 {[%clk 00:17:15]}
{[%emt 00:00:22]} Bf8 {[%clk 00:14:16]} {[%emt 00:01:15]} 17. Qh3 {[%clk
00:16:24]} {[%emt 00:00:56]} e5 {[%clk 00:12:17]} {[%emt 00:02:05]} 18. fxe5
{[%clk 00:15:58]} {[%emt 00:00:30]} Nxe5 {[%clk 00:11:38]} {[%emt 00:00:44]} 19.
Nxe5 {[%clk 00:15:01]} {[%emt 00:01:03]} fxe5 {[%clk 00:11:28]} {[%emt
00:00:14]} 20. e4 {[%clk 00:15:01]} {[%emt 00:00:04]} d4 {[%clk 00:07:31]}
{[%emt 00:04:02]} 21. Bc1 {[%clk 00:14:16]} {[%emt 00:00:50]} a6 {[%clk
00:06:52]} {[%emt 00:00:44]} 22. Nf3 {[%clk 00:12:08]} {[%emt 00:02:14]} b5
{[%clk 00:04:54]} {[%emt 00:02:03]} 23. Ng5 {[%clk 00:07:58]} {[%emt 00:04:14]}
Qg6 {[%clk 00:03:48]} {[%emt 00:01:12]} 24. a5 {[%clk 00:06:15]} {[%emt
00:01:48]} c4 {[%clk 00:01:42]} {[%emt 00:02:11]} 25. bxc4 {[%clk 00:04:23]}
{[%emt 00:01:57]} bxc4 {[%clk 00:01:46]} 26. Bd2 {[%clk 00:03:50]} {[%emt
00:00:38]} cxd3 {[%clk 00:01:40]} {[%emt 00:00:11]} 27. Qxd3 {[%clk 00:03:24]}
{[%emt 00:00:30]} Rac8 {[%clk 00:01:01]} {[%emt 00:00:44]} 28. Qb3+ {[%clk
00:03:19]} {[%emt 00:00:10]} 1-0

[Event "MČR juniorů a juniorek v rapid šachu 2023"]
[Site "Czech Republic"]
[Date "2023.09.23"]
[Round "4.5"]
[White "Cibulka, Josef"]
[Black "Garabik, Marek"]
[Result "1-0"]
[TimeControl "20 min + 5 sec per move"]
[WhiteFideId "23708042"]
[BlackFideId "23717742"]
[WhiteElo "1922"]
[BlackElo "1787"]

1. e4 {[%clk 00:20:08]} {[%emt 00:00:02]} e6 {[%clk 00:20:10]} {[%emt
00:00:02]} 2. d3 {[%clk 00:20:09]} {[%emt 00:00:03]} d5 {[%clk 00:20:10]}
{[%emt 00:00:05]} 3. Nd2 {[%clk 00:20:13]} Nf6 {[%clk 00:19:48]} {[%emt
00:00:28]} 4. Ngf3 {[%clk 00:20:16]} {[%emt 00:00:01]} Nc6 {[%clk 00:19:47]}
{[%emt 00:00:06]} 5. g3 {[%clk 00:20:19]} {[%emt 00:00:02]} dxe4 {[%clk
00:19:43]} {[%emt 00:00:09]} 6. dxe4 {[%clk 00:20:22]} {[%emt 00:00:02]} Bd6
{[%clk 00:19:31]} {[%emt 00:00:17]} 7. Bg2 {[%clk 00:20:20]} {[%emt 00:00:07]}
e5 {[%clk 00:19:35]} 8. O-O {[%clk 00:20:21]} {[%emt 00:00:05]} O-O {[%clk
00:19:38]} {[%emt 00:00:04]} 9. c3 {[%clk 00:20:21]} {[%emt 00:00:04]} Bg4
{[%clk 00:19:21]} {[%emt 00:00:22]} 10. Qc2 {[%clk 00:20:22]} {[%emt 00:00:03]}
Qe7 {[%clk 00:19:04]} {[%emt 00:00:22]} 11. Nc4 {[%clk 00:20:08]} {[%emt
00:00:20]} Rad8 {[%clk 00:18:37]} {[%emt 00:00:32]} 12. Be3 {[%clk 00:19:06]}
{[%emt 00:01:06]} Be6 {[%clk 00:18:17]} {[%emt 00:00:25]} 13. Nxd6 {[%clk
00:18:55]} {[%emt 00:00:16]} cxd6 {[%clk 00:17:43]} {[%emt 00:00:40]} 14. Rfd1
{[%clk 00:18:45]} {[%emt 00:00:15]} d5 {[%clk 00:17:14]} {[%emt 00:00:35]} 15.
exd5 {[%clk 00:18:02]} {[%emt 00:00:47]} Bxd5 {[%clk 00:16:43]} {[%emt
00:00:36]} 16. c4 {[%clk 00:17:12]} {[%emt 00:00:56]} Be4 {[%clk 00:16:14]}
{[%emt 00:00:33]} 17. Qc3 {[%clk 00:16:54]} {[%emt 00:00:24]} Bg6 {[%clk
00:14:30]} {[%emt 00:01:49]} 18. Nh4 {[%clk 00:16:23]} {[%emt 00:00:36]} Ne4
{[%clk 00:13:49]} {[%emt 00:00:45]} 19. Nxg6 {[%clk 00:16:14]} {[%emt
00:00:15]} Nxc3 {[%clk 00:12:48]} {[%emt 00:01:07]} 20. Nxe7+ {[%clk 00:16:17]}
{[%emt 00:00:03]} Nxe7 {[%clk 00:12:51]} 21. bxc3 {[%clk 00:16:15]} {[%emt
00:00:07]} Rc8 {[%clk 00:12:55]} 22. c5 {[%clk 00:16:15]} {[%emt 00:00:05]} Nc6
{[%clk 00:12:53]} {[%emt 00:00:06]} 23. Rd7 {[%clk 00:16:16]} {[%emt 00:00:04]}
Rfd8 {[%clk 00:12:55]} {[%emt 00:00:03]} 24. Rad1 {[%clk 00:16:20]} {[%emt
00:00:02]} Nb8 {[%clk 00:12:02]} {[%emt 00:00:58]} 25. Rxd8+ {[%clk 00:16:22]}
{[%emt 00:00:02]} Rxd8 {[%clk 00:12:06]} 26. Rxd8# {[%clk 00:16:26]} {[%emt
00:00:01]} 1-0

[Event "MČR juniorů a juniorek v rapid šachu 2023"]
[Site "Czech Republic"]
[Date "2023.09.23"]
[Round "4.6"]
[White "Martinkovic, Adam"]
[Black "Novotny, Dominik"]
[Result "1-0"]
[TimeControl "20 min + 5 sec per move"]
[WhiteFideId "23728019"]
[BlackFideId "23755601"]
[WhiteElo "1807"]
[BlackElo "1707"]

1. c4 {[%clk 00:20:07]} {[%emt 00:00:02]} Nf6 {[%clk 00:20:07]} {[%emt
00:00:03]} 2. Nc3 {[%clk 00:20:11]} {[%emt 00:00:02]} c5 {[%clk 00:20:00]}
{[%emt 00:00:13]} 3. g3 {[%clk 00:20:14]} {[%emt 00:00:01]} Nc6 {[%clk
00:20:02]} {[%emt 00:00:04]} 4. Bg2 {[%clk 00:20:17]} e6 {[%clk 00:19:52]}
{[%emt 00:00:14]} 5. e3 {[%clk 00:19:43]} {[%emt 00:00:39]} d5 {[%clk
00:19:35]} {[%emt 00:00:22]} 6. cxd5 {[%clk 00:19:38]} {[%emt 00:00:10]} exd5
{[%clk 00:19:32]} {[%emt 00:00:09]} 7. d4 {[%clk 00:19:30]} {[%emt 00:00:13]}
Be6 {[%clk 00:17:45]} {[%emt 00:01:52]} 8. Nge2 {[%clk 00:19:20]} {[%emt
00:00:14]} Qd7 {[%clk 00:16:52]} {[%emt 00:00:58]} 9. O-O {[%clk 00:17:51]}
{[%emt 00:01:34]} Be7 {[%clk 00:14:23]} {[%emt 00:02:34]} 10. dxc5 {[%clk
00:16:46]} {[%emt 00:01:11]} Bxc5 {[%clk 00:14:23]} {[%emt 00:00:04]} 11. Nd4
{[%clk 00:16:47]} {[%emt 00:00:04]} Nxd4 {[%clk 00:12:57]} {[%emt 00:01:31]} 12.
exd4 {[%clk 00:16:47]} {[%emt 00:00:04]} Be7 {[%clk 00:12:56]} {[%emt
00:00:07]} 13. Bf4 {[%clk 00:16:16]} {[%emt 00:00:36]} O-O {[%clk 00:12:27]}
{[%emt 00:00:34]} 14. Qb3 {[%clk 00:15:23]} {[%emt 00:00:57]} Bd6 {[%clk
00:10:47]} {[%emt 00:01:46]} 15. Bxd6 {[%clk 00:15:12]} {[%emt 00:00:16]} Qxd6
{[%clk 00:10:51]} {[%emt 00:00:02]} 16. Rac1 {[%clk 00:14:51]} {[%emt
00:00:25]} a6 {[%clk 00:09:00]} {[%emt 00:01:56]} 17. Na4 {[%clk 00:13:47]}
{[%emt 00:01:10]} b5 {[%clk 00:08:40]} {[%emt 00:00:24]} 18. Nc5 {[%clk
00:13:37]} {[%emt 00:00:14]} Rfc8 {[%clk 00:06:55]} {[%emt 00:01:51]} 19. Qd3
{[%clk 00:12:57]} {[%emt 00:00:45]} Nd7 {[%clk 00:06:24]} {[%emt 00:00:36]} 20.
Nxd7 {[%clk 00:11:21]} {[%emt 00:01:41]} Qxd7 {[%clk 00:06:26]} {[%emt
00:00:02]} 21. Rc5 {[%clk 00:10:53]} {[%emt 00:00:34]} Rxc5 {[%clk 00:05:13]}
{[%emt 00:01:18]} 22. dxc5 {[%clk 00:10:55]} {[%emt 00:00:02]} Rc8 {[%clk
00:05:05]} {[%emt 00:00:14]} 23. b4 {[%clk 00:10:36]} {[%emt 00:00:25]} d4
{[%clk 00:03:50]} {[%emt 00:01:19]} 24. Rd1 {[%clk 00:10:04]} {[%emt 00:00:36]}
Bxa2 {[%clk 00:00:42]} {[%emt 00:03:14]} 25. Qxd4 {[%clk 00:10:04]} {[%emt
00:00:05]} Qxd4 {[%clk 00:00:29]} {[%emt 00:00:18]} 26. Rxd4 {[%clk 00:10:08]}
a5 {[%clk 00:00:30]} {[%emt 00:00:05]} 27. bxa5 {[%clk 00:10:02]} {[%emt
00:00:11]} Kf8 {[%clk 00:00:33]} 28. c6 {[%clk 00:09:58]} {[%emt 00:00:08]} Be6
{[%clk 00:00:11]} {[%emt 00:00:28]} 29. Rb4 {[%clk 00:09:04]} {[%emt 00:01:00]}
Bc4 {[%clk 00:00:11]} {[%emt 00:00:04]} 30. a6 {[%clk 00:08:49]} {[%emt
00:00:19]} Ke7 {[%clk 00:00:06]} {[%emt 00:00:11]} 31. a7 {[%clk 00:08:47]}
{[%emt 00:00:07]} Kd6 {[%clk 00:00:00]} {[%emt 00:00:06]} 1-0

[Event "MČR juniorů a juniorek v rapid šachu 2023"]
[Site "Czech Republic"]
[Date "2023.09.23"]
[Round "4.7"]
[White "Husa, Daniel"]
[Black "Nagy, Ladislav"]
[Result "1/2-1/2"]
[TimeControl "20 min + 5 sec per move"]
[WhiteFideId "393487"]
[BlackFideId "374300"]
[WhiteElo "1760"]
[BlackElo "2089"]

1. d4 {[%clk 00:20:08]} {[%emt 00:00:02]} Nf6 {[%clk 00:20:08]} {[%emt
00:00:02]} 2. c4 {[%clk 00:20:10]} {[%emt 00:00:02]} e6 {[%clk 00:20:11]}
{[%emt 00:00:02]} 3. g3 {[%clk 00:20:13]} {[%emt 00:00:03]} d5 {[%clk
00:20:14]} {[%emt 00:00:02]} 4. Nf3 {[%clk 00:20:15]} {[%emt 00:00:02]} dxc4
{[%clk 00:20:17]} {[%emt 00:00:03]} 5. Bg2 {[%clk 00:20:17]} {[%emt 00:00:03]}
Nc6 {[%clk 00:20:18]} {[%emt 00:00:03]} 6. Qa4 {[%clk 00:20:18]} {[%emt
00:00:04]} Bb4+ {[%clk 00:20:20]} {[%emt 00:00:04]} 7. Bd2 {[%clk 00:20:20]}
{[%emt 00:00:03]} Nd5 {[%clk 00:20:11]} {[%emt 00:00:13]} 8. Qc2 {[%clk
00:20:13]} {[%emt 00:00:12]} b5 {[%clk 00:19:52]} {[%emt 00:00:25]} 9. a4
{[%clk 00:19:53]} {[%emt 00:00:25]} Bxd2+ {[%clk 00:19:37]} {[%emt 00:00:20]}
10. Nbxd2 {[%clk 00:19:51]} {[%emt 00:00:07]} Ncb4 {[%clk 00:19:31]} {[%emt
00:00:10]} 11. Qc1 {[%clk 00:19:46]} {[%emt 00:00:07]} c6 {[%clk 00:19:21]}
{[%emt 00:00:19]} 12. O-O {[%clk 00:19:23]} {[%emt 00:00:28]} O-O {[%clk
00:19:03]} {[%emt 00:00:23]} 13. b3 {[%clk 00:18:58]} {[%emt 00:00:30]} c3
{[%clk 00:18:12]} {[%emt 00:00:56]} 14. Ne4 {[%clk 00:18:42]} {[%emt 00:00:21]}
c2 {[%clk 00:17:38]} {[%emt 00:00:38]} 15. Qd2 {[%clk 00:17:50]} {[%emt
00:00:57]} bxa4 {[%emt 00:05:42]} 16. Rxa4 {[%clk 00:17:13]} {[%emt 00:00:06]}
Qb6 {[%clk 00:11:00]} {[%emt 00:01:42]} 17. Rc1 {[%clk 00:15:33]} {[%emt
00:01:46]} a5 {[%clk 00:10:01]} {[%emt 00:01:04]} 18. Nc5 {[%clk 00:11:03]}
{[%emt 00:04:35]} Rd8 {[%clk 00:07:32]} {[%emt 00:02:33]} 19. Ne1 {[%clk
00:10:28]} {[%emt 00:00:40]} Nc7 {[%clk 00:06:11]} {[%emt 00:01:26]} 20. Nxc2
{[%clk 00:07:39]} {[%emt 00:02:55]} Nca6 {[%clk 00:04:06]} {[%emt 00:02:09]} 21.
Nxb4 {[%clk 00:06:13]} {[%emt 00:01:32]} Nxb4 {[%clk 00:03:30]} {[%emt
00:00:41]} 22. Qc3 {[%clk 00:04:57]} {[%emt 00:01:21]} Ba6 {[%clk 00:02:56]}
{[%emt 00:00:40]} 23. Nxa6 {[%clk 00:03:57]} {[%emt 00:01:05]} Rxa6 {[%clk
00:02:55]} {[%emt 00:00:05]} 24. e3 {[%clk 00:03:11]} {[%emt 00:00:52]} g6
{[%clk 00:02:40]} {[%emt 00:00:20]} 25. Qc5 {[%clk 00:02:36]} {[%emt 00:00:39]}
Qxc5 {[%clk 00:01:24]} {[%emt 00:01:22]} 26. Rxc5 {[%clk 00:02:37]} {[%emt
00:00:04]} Rda8 {[%clk 00:01:06]} {[%emt 00:00:22]} 27. Bf1 {[%clk 00:01:46]}
{[%emt 00:00:56]} R6a7 {[%clk 00:01:09]} {[%emt 00:00:02]} 28. Bg2 {[%clk
00:01:40]} {[%emt 00:00:11]} Ra6 {[%emt 00:00:49]} 1/2-1/2